bitfinex-derivatives/quotes_ETHF0:USTF0_20230106
["timestamp","ask_amount","ask_price","bid_price","bid_amount"]
[1672991753248,1.80215406,1247.7,1247.6,6.82382683]
[1672991753669,1.80215406,1247.7,1247.6,4.42542576]
[1672991755131,1.80215406,1247.7,1247.6,7.63322576]
[1672991757239,3.00300085,1247.7,1247.6,7.63322576]
[1672991757666,1.80215406,1247.7,1247.6,7.63322576]
[1672991758711,3.00296963,1247.7,1247.6,7.63322576]
[1672991759127,3.00296963,1247.7,1247.6,4.42542576]
[1672991759555,3.00296963,1247.7,1247.6,7.63322576]
[1672991760286,1.80215406,1247.7,1247.6,7.63322576]
[1672991760496,1.80215406,1247.7,1247.6,4.42542576]
[1672991763347,3.0029737,1247.7,1247.6,4.42542576]
[1672991763761,3.0029735,1247.7,1247.6,4.42542576]
[1672991764291,1.80215406,1247.7,1247.6,4.42542576]
[1672991764606,3.00305126,1247.7,1247.6,4.42542576]
[1672991764817,1.80215406,1247.7,1247.6,4.42542576]
[1672991765230,3.00304453,1247.7,1247.6,4.42542576]
[1672991765440,1.80215406,1247.7,1247.6,4.42542576]
[1672991766597,1.80215406,1247.7,1247.6,6.82382162]
[1672991767127,1.80215406,1247.7,1247.6,10.03162162]
[1672991768177,1.80215406,1247.7,1247.6,12.43004973]
[1672991769125,1.80215406,1247.7,1247.6,9.22224973]
[1672991770489,3.00335942,1247.7,1247.6,6.21754767]
[1672991770803,3.00335942,1247.7,1247.6,9.21623766]
[1672991771120,4.2047179,1247.7,1247.6,9.21623766]
[1672991773756,4.2047179,1247.7,1247.6,12.42403766]
[1672991774803,5.40635329,1247.7,1247.6,12.42403766]
[1672991776480,5.40627672,1247.7,1247.6,12.42403766]
[1672991776691,4.2047179,1247.7,1247.6,12.42403766]
[1672991777324,4.2047179,1247.7,1247.6,9.21623766]
[1672991777541,4.2047179,1247.7,1247.6,12.42403766]
[1672991779537,4.2047179,1247.7,1247.6,9.21623766]
[1672991779750,4.2047179,1247.7,1247.6,12.42403766]
[1672991781533,4.2047179,1247.7,1247.6,15.42388401]
[1672991781948,4.2047179,1247.7,1247.6,15.42380714]
[1672991782481,4.2047179,1247.7,1247.6,12.42403766]
[1672991782899,4.2047179,1247.7,1247.6,15.4239643]
[1672991783734,4.2047179,1247.7,1247.6,12.42403766]
[1672991785114,4.2047179,1247.7,1247.6,9.21623766]
[1672991785430,4.2047179,1247.7,1247.6,12.42403766]
[1672991786686,4.2047179,1247.7,1247.6,9.21623766]
[1672991786898,4.2047179,1247.7,1247.6,12.42403766]
[1672991787948,4.2047179,1247.7,1247.6,9.21623766]
[1672991788155,4.2047179,1247.7,1247.6,12.42403766]
[1672991790570,4.2047179,1247.7,1247.6,9.21623766]
[1672991790774,4.2047179,1247.7,1247.6,12.42403766]
[1672991791519,5.40653327,1247.7,1247.6,12.42403766]
[1672991791943,4.2047179,1247.7,1247.6,12.42403766]
[1672991792991,4.2047179,1247.7,1247.6,9.21623766]
[1672991793201,4.2047179,1247.7,1247.6,12.42403766]
[1672991793423,5.40656022,1247.7,1247.6,12.42403766]
[1672991796472,5.40656022,1247.7,1247.6,9.21623766]
[1672991796680,5.40656022,1247.7,1247.6,12.42403766]
[1672991798664,4.2047179,1247.7,1247.6,12.42403766]
[1672991799202,4.2047179,1247.7,1247.6,9.21623766]
[1672991799512,4.2047179,1247.7,1247.6,12.42403766]
[1672991799930,4.2047179,1247.7,1247.6,9.21623766]
[1672991800250,4.2047179,1247.7,1247.6,12.42403766]
[1672991801196,4.2047179,1247.7,1247.6,9.21623766]
[1672991801408,5.40654267,1247.7,1247.6,12.42403766]
[1672991803186,4.2047179,1247.7,1247.6,12.42403766]
[1672991808460,6.60775405,1247.7,1247.6,12.42403766]
[1672991810136,5.40687065,1247.7,1247.6,12.42403766]
[1672991810347,4.2047179,1247.7,1247.6,12.42403766]
[1672991814023,6.60775405,1247.7,1247.6,12.42403766]
[1672991814236,4.80559999,1247.7,1247.6,12.21787565]
[1672991814557,7.80926354,1247.7,1247.6,12.21787565]
[1672991814769,7.81104015,1247.7,1247.6,12.21787565]
[1672991814971,7.81104071,1247.7,1247.6,12.21787565]
[1672991815183,4.80642472,1247.7,1247.6,14.61850825]
[1672991816661,4.80642472,1247.7,1247.6,12.21787565]
[1672991819012,4.80642472,1247.7,1247.6,14.61792315]
[1672991820074,4.80642472,1247.7,1247.6,12.21787565]
[1672991820789,4.80642472,1247.7,1247.6,14.61785571]
[1672991821637,4.80642472,1247.7,1247.6,12.21787565]
[1672991823844,6.60863213,1247.7,1247.6,12.21787565]
[1672991824998,4.80642472,1247.7,1247.6,12.21787565]
[1672991825422,4.80642472,1247.7,1247.6,14.61738967]
[1672991826085,4.80642472,1247.7,1247.6,11.61575168]
[1672991826255,4.80642472,1247.7,1247.6,14.61738967]
[1672991826896,4.80642472,1247.7,1247.6,11.61575168]
[1672991829742,6.60831602,1247.7,1247.6,14.61738967]
[1672991829947,6.60831602,1247.7,1247.6,12.21787565]
[1672991830672,4.80642472,1247.7,1247.6,14.6165657]
[1672991831422,6.60831277,1247.7,1247.6,14.6165657]
[1672991834154,4.20445189,1247.7,1247.6,14.6165657]
[1672991846987,4.20445189,1247.7,1247.6,17.8243657]
[1672991847174,4.19685333,1247.7,1247.6,17.8243657]
[1672991848641,4.19685333,1247.7,1247.6,14.6165657]
[1672991848847,4.19685333,1247.7,1247.6,17.8243657]
[1672991854191,4.19685333,1247.7,1247.6,14.82272771]
[1672991854398,4.19685333,1247.7,1247.6,17.8215376]
[1672991854611,4.19685333,1247.7,1247.6,14.82272771]
[1672991855663,4.19685333,1247.7,1247.6,11.61492771]
[1672991855977,4.19685333,1247.7,1247.6,14.82272771]
[1672991857659,4.19685333,1247.7,1247.6,17.82196003]
[1672991861225,4.19685333,1247.7,1247.6,14.61416003]
[1672991861651,4.19685333,1247.7,1247.6,17.82196003]
[1672991862171,4.19685333,1247.7,1247.6,14.61416003]
[1672991862388,4.19685333,1247.7,1247.6,17.82196003]
[1672991863856,4.19685333,1247.7,1247.6,14.61416003]
[1672991864067,4.19685333,1247.7,1247.6,17.82196003]
[1672991864697,4.19685333,1247.7,1247.6,14.61416003]
[1672991864896,4.19685333,1247.7,1247.6,17.82196003]
[1672991865111,4.19685333,1247.7,1247.6,14.61416003]
[1672991865320,4.19685333,1247.7,1247.6,17.82196003]
[1672991865848,6.60071421,1247.7,1247.6,17.82196003]
[1672991867424,4.19685333,1247.7,1247.6,14.82272771]
[1672991869107,6.60071421,1247.7,1247.6,14.82272771]
[1672991869634,6.60071421,1247.7,1247.6,11.61492771]
[1672991869944,6.60071421,1247.7,1247.6,14.61591461]
[1672991871201,4.79882616,1247.7,1247.6,14.61591461]
[1672991873199,7.80248971,1247.7,1247.6,14.61591461]
[1672991873411,5.39862883,1247.7,1247.6,14.0162175]
[1672991874464,5.39862883,1247.7,1247.6,17.0172044]
[1672991874887,7.80287881,1247.7,1247.6,17.0172044]
[1672991875088,5.39862883,1247.7,1247.6,17.0172044]
[1672991875299,7.80234609,1247.7,1247.6,14.0162175]
[1672991877831,4.79868254,1247.7,1247.6,17.0172044]
[1672991878041,4.79868254,1247.7,1247.6,14.61591461]
[1672991880983,2.40371726,1247.7,1247.6,6.82040065]
[1672991881196,4.20606849,1247.7,1247.6,6.82040065]
[1672991884555,2.40371726,1247.7,1247.6,6.82040065]
[1672991884767,4.20606788,1247.7,1247.6,6.82040065]
[1672991884969,2.40371726,1247.7,1247.6,6.82040065]
[1672991885179,4.20605673,1247.7,1247.6,6.82040065]
[1672991885912,4.20605633,1247.7,1247.6,6.82040065]
[1672991886126,2.40371726,1247.7,1247.6,6.82040065]
[1672991888127,4.20605588,1247.7,1247.6,6.82040065]
[1672991891066,2.40371726,1247.7,1247.6,6.82040065]
[1672991892329,4.20608816,1247.7,1247.6,6.82040065]
[1672991892845,2.40371726,1247.7,1247.6,6.82040065]
[1672991893796,2.40371726,1247.7,1247.6,9.22021094]
[1672991894005,2.40371726,1247.7,1247.6,6.21922404]
[1672991894741,5.40738081,1247.7,1247.6,6.21922404]
[1672991896314,2.40371726,1247.7,1247.6,6.21922404]
[1672991904098,5.40738081,1247.7,1247.6,6.21922404]
[1672991906936,3.00366355,1247.7,1247.6,4.79850034]
[1672991907673,3.00366355,1247.7,1247.6,6.59835998]
[1672991907885,3.00366355,1247.7,1247.6,4.79850034]
[1672991908199,5.40704592,1247.7,1247.6,6.21921392]
[1672991911036,3.00366355,1247.7,1247.6,6.21921392]
[1672991912298,5.40729973,1247.7,1247.6,6.21921392]
[1672991915657,2.40363618,1247.7,1247.6,9.22020082]
[1672991916398,5.40729973,1247.7,1247.6,6.21921392]
[1672991917862,5.50366355,1247.7,1247.6,4.79850034]
[1672991918076,3.00366355,1247.7,1247.6,6.21924132]
[1672991918597,3.00366355,1247.7,1247.6,4.79850034]
[1672991919652,3.00366355,1247.7,1247.6,6.21923099]
[1672991924383,5.40722997,1247.7,1247.6,6.21923099]
[1672991924698,3.00366355,1247.7,1247.6,6.21923099]
[1672991929640,6.21146355,1247.7,1247.6,6.21923099]
[1672991932381,6.21146355,1247.7,1247.6,8.71923099]
[1672991932580,8.61560489,1247.7,1247.6,9.22021789]
[1672991933109,6.21146355,1247.7,1247.6,9.22021789]
[1672991933633,2.40440145,1247.7,1247.6,6.8204076]
[1672991934165,7.908065,1247.7,1247.6,6.8204076]
[1672991936785,7.908065,1247.7,1247.6,7.7999109]
[1672991936997,7.908065,1247.7,1247.6,9.22064155]
[1672991937738,5.408065,1247.7,1247.6,9.22064155]
[1672991938795,5.408065,1247.7,1247.6,6.8204076]
[1672991940151,5.408065,1247.7,1247.6,9.22064363]
[1672991940362,5.408065,1247.7,1247.6,6.8204076]
[1672991940574,5.408065,1247.7,1247.6,9.2206204]
[1672991945722,2.40440145,1247.7,1247.6,6.8204076]
[1672991946559,2.40440145,1247.7,1247.6,10.0282076]
[1672991946769,4.20752836,1247.7,1247.6,10.0282076]
[1672991946988,1.80312691,1247.7,1247.6,10.0282076]
[1672991947198,2.40440145,1247.7,1247.6,10.0282076]
[1672991947409,4.90440145,1247.7,1247.6,10.0282076]
[1672991947621,2.40440145,1247.7,1247.6,10.0282076]
[1672991948251,2.40440145,1247.7,1247.6,6.8204076]
[1672991949620,2.40440145,1247.7,1247.6,14.8394076]
[1672991949828,4.20699884,1247.7,1247.6,14.8394076]
[1672991950350,4.20699884,1247.7,1247.6,18.0472076]
[1672991953707,2.40440145,1247.7,1247.6,17.23788477]
[1672991954134,2.40440145,1247.7,1247.6,14.23689787]
[1672991955400,5.408065,1247.7,1247.6,6.21789787]
[1672991956548,3.00366355,1247.7,1247.6,4.79716722]
[1672991956760,3.00366355,1247.7,1247.6,6.59640405]
[1672991960344,6.21146355,1247.7,1247.6,6.59640405]
[1672991961489,3.00366355,1247.7,1247.6,6.59640405]
[1672991961704,6.21146355,1247.7,1247.6,6.59640405]
[1672991964121,6.21146355,1247.7,1247.6,4.79716722]
[1672991964650,6.21146355,1247.7,1247.6,6.59633769]
[1672991964860,3.00366355,1247.7,1247.6,6.59633769]
[1672991968845,5.40652026,1247.7,1247.6,4.79716722]
[1672991969055,5.40652026,1247.7,1247.6,7.29716722]
[1672991969591,5.40652026,1247.7,1247.6,4.79716722]
[1672991972637,5.40652026,1247.7,1247.6,6.21789014]
[1672991972840,5.40652026,1247.7,1247.6,4.79716722]
[1672991973581,5.40652026,1247.7,1247.6,2.39847717]
[1672991973793,8.61432026,1247.7,1247.6,2.39847717]
[1672991973997,6.21146355,1247.7,1247.6,4.19768927]
[1672991975161,6.21146355,1247.7,1247.6,2.39847717]
[1672991975468,8.61438421,1247.7,1247.6,2.39847717]
[1672991976524,5.40658421,1247.7,1247.6,2.39847717]
[1672991976731,8.61438421,1247.7,1247.6,2.39847717]
[1672991977684,5.40658421,1247.7,1247.6,2.39847717]
[1672991980735,3.00366355,1247.7,1247.6,2.39847717]
[1672991980934,5.40656629,1247.7,1247.6,2.39847717]
[1672991982102,7.80951498,1247.7,1247.6,2.39847717]
[1672991982309,4.80585143,1247.7,1247.6,3.81918066]
[1672991989454,4.80585143,1247.7,1247.6,6.82016756]
[1672991990185,6.60829756,1247.7,1247.6,7.62949039]
[1672991990388,4.20534887,1247.7,1247.6,7.62949039]
[1672991990601,6.60829756,1247.7,1247.6,7.62949039]
[1672991990811,4.20534887,1247.7,1247.6,7.62949039]
[1672991994492,4.20534887,1247.7,1247.6,4.42169039]
[1672991995854,4.20534887,1247.7,1247.6,7.62949039]
[1672991996703,4.20534887,1247.7,1247.6,4.42169039]
[1672992000171,2.40290274,1247.7,1247.5,18.7268]
[1672992001007,2.39957274,1247.7,1247.6,3.2078]
[1672992001658,2.39957274,1247.7,1247.5,15.519]
[1672992007318,4.20130651,1247.7,1247.6,4.41831963]
[1672992007527,4.20130651,1247.7,1247.6,6.81658883]
[1672992007743,6.60364867,1247.7,1247.6,14.83558883]
[1672992007955,4.20130651,1247.7,1247.6,14.83558883]
[1672992008166,4.20130651,1247.7,1247.6,18.04338883]
[1672992010180,6.60359488,1247.7,1247.6,20.44132101]
[1672992010484,4.20130651,1247.7,1247.6,18.04338883]
[1672992012484,6.60359488,1247.7,1247.6,20.44131855]
[1672992012692,4.80186111,1247.7,1247.6,14.23598835]
[1672992013427,4.80186111,1247.7,1247.6,14.23601399]
[1672992013745,4.80186111,1247.7,1247.6,17.2337105]
[1672992015424,6.60385985,1247.7,1247.6,14.83558883]
[1672992015634,4.20157148,1247.7,1247.6,14.83558883]
[1672992024259,4.20157148,1247.7,1247.6,18.04338883]
[1672992024780,6.60385985,1247.7,1247.6,18.04338883]
[1672992024993,4.20157148,1247.7,1247.6,18.04338883]
[1672992027089,6.60385985,1247.7,1247.6,18.04338883]
[1672992027410,6.60385985,1247.7,1247.6,14.83558883]
[1672992029080,4.80186111,1247.7,1247.6,14.83558883]
[1672992035936,4.80186111,1247.7,1247.6,14.83724205]
[1672992044551,7.80475073,1247.7,1247.6,9.21806041]
[1672992044860,5.40246236,1247.7,1247.6,16.73771068]
[1672992045069,7.80659319,1247.7,1247.6,19.73706041]
[1672992045283,7.80659319,1247.7,1247.6,16.73771068]
[1672992045911,11.01439319,1247.7,1247.6,14.23771068]
[1672992046122,11.01412334,1247.7,1247.6,17.23706041]
[1672992046437,11.01412334,1247.7,1247.6,14.23771068]
[1672992046865,8.61026236,1247.7,1247.6,14.23771068]
[1672992047065,8.61026236,1247.7,1247.6,6.21871068]
[1672992047276,8.61026236,1247.7,1247.6,7.29808756]
[1672992047487,8.61026236,1247.7,1247.6,8.7188321]
[1672992047799,8.61026236,1247.7,1247.6,7.29808756]
[1672992048011,8.61026236,1247.7,1247.6,4.79808756]
[1672992048215,8.61026236,1247.7,1247.6,7.29808756]
[1672992048429,8.61026236,1247.7,1247.6,8.71883318]
[1672992049271,8.61026236,1247.7,1247.6,7.29808756]
[1672992051060,8.61026236,1247.7,1247.6,4.79808756]
[1672992051478,8.61026236,1247.7,1247.6,6.59732043]
[1672992051687,8.61026236,1247.7,1247.6,6.59731198]
[1672992052528,5.40246236,1247.7,1247.6,6.59731198]
[1672992052840,4.80249501,1247.7,1247.6,9.21811659]
[1672992053373,4.80249501,1247.7,1247.6,6.21876686]
[1672992053684,7.80538463,1247.7,1247.6,8.71876686]
[1672992054419,4.80249501,1247.7,1247.6,8.71876686]
[1672992057579,4.80249501,1247.7,1247.6,9.31829823]
[1672992057892,4.80249501,1247.7,1247.6,11.71683499]
[1672992060413,4.80249501,1247.7,1247.6,16.71683499]
[1672992060832,4.80249501,1247.7,1247.6,13.71748526]
[1672992061882,4.80249501,1247.7,1247.6,16.71683499]
[1672992062404,4.80249501,1247.7,1247.6,13.71748526]
[1672992062930,7.80538463,1247.7,1247.6,11.21748526]
[1672992063250,8.61026236,1247.7,1247.6,11.59634838]
[1672992064615,6.21068962,1247.7,1247.6,9.19807918]
[1672992065454,3.00288962,1247.7,1247.6,9.19807918]
[1672992065664,6.21068962,1247.7,1247.6,9.19807918]
[1672992067655,6.21068962,1247.7,1247.6,4.19807918]
[1672992067860,6.21068962,1247.7,1247.6,4.89853676]
[1672992068602,8.61384313,1247.7,1247.6,4.89853676]
[1672992068811,6.21068962,1247.7,1247.6,4.89853676]
[1672992069126,8.61392309,1247.7,1247.6,6.31925652]
[1672992069559,5.40612309,1247.7,1247.6,6.31925652]
[1672992072397,2.40323347,1247.7,1247.6,6.31925652]
[1672992074600,5.40612309,1247.7,1247.6,6.31925652]
[1672992077656,3.00288962,1247.7,1247.6,6.31925652]
[1672992077857,5.40658409,1247.7,1247.6,6.31925652]
[1672992078069,3.00288962,1247.7,1247.6,6.31925652]
[1672992078701,2.40362846,1247.7,1247.6,9.31860625]
[1672992078918,4.90362846,1247.7,1247.6,6.31925652]
[1672992079125,2.40362846,1247.7,1247.6,6.31925652]
[1672992079545,2.40362846,1247.7,1247.6,9.31860625]
[1672992080284,2.40362846,1247.7,1247.6,6.31925652]
[1672992081230,5.40651808,1247.7,1247.6,9.31860625]
[1672992081965,2.40362846,1247.7,1247.6,9.31860625]
[1672992082171,5.40651808,1247.7,1247.6,9.31860625]
[1672992082804,2.40362846,1247.7,1247.6,9.31860625]
[1672992083227,5.40651808,1247.7,1247.6,9.31860625]
[1672992086169,5.40651808,1247.7,1247.6,6.31925652]
[1672992088060,3.00288962,1247.7,1247.6,6.31925652]
[1672992088266,5.40693773,1247.7,1247.6,6.31925652]
[1672992088482,5.40693795,1247.7,1247.6,6.31925652]
[1672992088797,5.40693795,1247.7,1247.6,9.31860625]
[1672992089112,5.40693795,1247.7,1247.6,6.31925652]
[1672992089321,3.00288962,1247.7,1247.6,6.31925652]
[1672992090688,5.40697548,1247.7,1247.6,6.31925652]
[1672992091216,3.00288962,1247.7,1247.6,6.31925652]
[1672992091417,5.40701088,1247.7,1247.6,6.31925652]
[1672992092591,3.00288962,1247.7,1247.6,6.31925652]
[1672992092899,5.4070175,1247.7,1247.6,6.31925652]
[1672992093106,2.40412788,1247.7,1247.6,6.92006949]
[1672992094157,1.80292934,1247.7,1247.6,6.92006949]
[1672992094464,6.70708465,1247.7,1247.6,6.92006949]
[1672992094679,2.40412788,1247.7,1247.6,6.92006949]
[1672992094889,4.20708963,1247.7,1247.6,6.92006949]
[1672992096260,1.80296175,1247.7,1247.6,6.92006949]
[1672992096476,4.20708963,1247.7,1247.6,6.92006949]
[1672992097413,1.80296175,1247.7,1247.6,6.92006949]
[1672992098050,4.20708963,1247.7,1247.6,6.92006949]
[1672992098364,4.20494812,1247.7,1247.6,14.93906949]
[1672992098674,1.80082024,1247.7,1247.6,18.14686949]
[1672992098887,3.00240007,1247.7,1247.6,15.14751976]
[1672992099096,1.80082024,1247.7,1247.6,15.14751976]
[1672992099413,3.0022007,1247.7,1247.6,18.14510696]
[1672992100041,3.0022007,1247.7,1247.6,15.14751976]
[1672992100252,1.20138046,1247.7,1247.6,15.14751976]
[1672992100678,5.4070175,1247.9,1247.6,15.14751976]
[1672992100988,2.40412788,1247.9,1247.8,2.39724443]
[1672992101200,2.40412788,1247.9,1247.8,6.69462677]
[1672992101414,2.40412788,1247.9,1247.8,6.6946269]
[1672992101617,5.4070175,1247.9,1247.8,6.6946269]
[1672992102148,2.40412788,1247.9,1247.8,6.6946269]
[1672992103307,2.40412788,1247.9,1247.8,4.29738247]
[1672992103621,2.40412788,1247.9,1247.8,4.89724443]
[1672992105930,2.40412788,1247.9,1247.8,6.31769464]
[1672992106140,2.40412788,1247.9,1247.8,6.31769503]
[1672992106672,5.4070175,1248.0,1247.8,6.31769503]
[1672992106876,5.4070175,1248.0,1247.9,2.99395935]
[1672992107192,5.40314996,1248.0,1247.9,2.99395935]
[1672992107613,3.00288962,1248.0,1247.9,1.19758374]
[1672992110557,5.40290295,1248.0,1247.9,1.19758374]
[1672992111294,3.00288962,1248.0,1247.9,1.19758374]
[1672992111608,6.21068962,1248.0,1247.9,1.19758374]
[1672992114354,6.21068962,1248.0,1247.8,5.49395935]
[1672992114670,2.3997963,1247.9,1247.8,5.49395935]
[1672992114882,4.8997963,1247.9,1247.8,5.49395935]
[1672992115395,2.3997963,1247.9,1247.8,5.49395935]
[1672992116348,2.3997963,1247.9,1247.8,4.29637561]
[1672992117080,5.50288962,1247.9,1247.8,1.19750633]
[1672992117288,5.50288962,1247.9,1247.8,3.69750633]
[1672992117816,5.50288962,1247.9,1247.8,1.19750633]
[1672992118557,5.50288962,1247.9,1247.8,3.69750633]
[1672992119716,8.71068962,1247.9,1247.8,1.19750633]
[1672992120333,8.71068962,1247.9,1247.8,3.69750633]
[1672992120549,8.71068962,1247.9,1247.8,1.19750633]
[1672992120970,8.71068962,1247.9,1247.8,3.69750633]
[1672992121186,11.11095371,1247.9,1247.8,5.49388194]
[1672992121598,8.61095371,1247.9,1247.8,5.49388194]
[1672992123812,5.60806409,1247.9,1247.8,5.49388194]
[1672992124120,5.60806409,1247.9,1247.8,4.29637561]
[1672992124537,5.60806409,1247.9,1247.8,5.4941793]
[1672992124748,5.60806409,1247.9,1247.8,4.29637561]
[1672992124958,5.60806409,1247.9,1247.8,5.49420736]
[1672992125812,5.60806409,1247.9,1247.8,4.29637561]
[1672992126024,8.61095371,1247.9,1247.8,5.49437007]
[1672992126446,5.40315371,1247.9,1247.8,5.49437007]
[1672992126756,8.61095371,1247.9,1247.8,5.49437007]
[1672992127701,6.21068962,1247.9,1247.8,5.49437007]
[1672992128331,6.21068962,1247.9,1247.8,2.99437007]
[1672992128967,6.21068962,1247.9,1247.8,5.49437007]
[1672992129384,6.21068962,1247.9,1247.8,2.99437007]
[1672992129909,3.00288962,1247.9,1247.8,2.99437007]
[1672992130124,6.21068962,1247.9,1247.8,2.99437007]
[1672992130648,6.21068962,1247.9,1247.8,1.19799446]
[1672992130862,6.21068962,1247.9,1247.8,5.49437007]
[1672992131279,6.21068962,1247.9,1247.8,5.49496918]
[1672992131487,6.21068962,1247.9,1247.8,5.49496929]
[1672992131705,6.21068962,1247.9,1247.8,4.29637561]
[1672992132119,6.21068962,1247.9,1247.8,5.49502003]
[1672992133795,6.21068962,1247.9,1247.8,4.29637561]
[1672992134006,6.21068962,1247.9,1247.8,5.4951231]
[1672992134222,6.21068962,1247.9,1247.8,4.29637561]
[1672992134436,6.21068962,1247.9,1247.8,6.69362004]
[1672992134954,6.21068962,1247.9,1247.8,4.29637561]
[1672992138311,6.21068962,1247.9,1247.8,1.79637561]
[1672992138632,6.21068962,1247.9,1247.8,4.29637561]
[1672992139370,3.00288962,1247.9,1247.8,4.29637561]
[1672992140944,3.00288962,1247.9,1247.8,4.89724443]
[1672992141261,2.40259758,1247.9,1247.8,6.31772724]
[1672992141471,2.40259758,1247.9,1247.8,9.31428278]
[1672992141686,2.40259758,1247.9,1247.8,6.31772724]
[1672992144833,5.4054872,1247.9,1247.8,6.69470725]
[1672992145047,3.00288962,1247.9,1247.8,6.69470725]
[1672992148613,3.00288962,1247.9,1247.8,4.89724443]
[1672992148935,3.00288962,1247.9,1247.8,6.69502362]
[1672992150401,3.00288962,1247.9,1247.8,4.29777919]
[1672992150612,3.00288962,1247.9,1247.8,6.69502362]
[1672992152194,3.00288962,1247.9,1247.8,4.89724443]
[1672992152618,3.00288962,1247.9,1247.8,6.31774154]
[1672992153344,5.40602327,1247.9,1247.8,6.31774154]
[1672992153772,3.00288962,1247.9,1247.8,4.89724443]
[1672992153982,3.00288962,1247.9,1247.8,6.31773788]
[1672992154298,5.40599542,1247.9,1247.8,6.31773788]
[1672992154818,3.00288962,1247.9,1247.8,4.89724443]
[1672992155025,3.00288962,1247.9,1247.8,6.31774266]
[1672992155237,3.00288962,1247.9,1247.8,6.31773929]
[1672992155448,3.00288962,1247.9,1247.8,4.89724443]
[1672992156075,5.40600522,1247.9,1247.8,6.31773245]
[1672992156492,5.40599352,1247.9,1247.8,6.31773245]
[1672992158185,3.00288962,1247.9,1247.8,6.31773245]
[1672992158600,3.00288962,1247.9,1247.8,4.89724443]
[1672992160701,3.00288962,1247.9,1247.8,6.69579901]
[1672992161861,6.21068962,1247.9,1247.8,6.69579901]
[1672992162283,6.21068962,1247.9,1247.8,6.31774725]
[1672992163331,6.21068962,1247.9,1247.8,4.89724443]
[1672992163957,3.00288962,1247.9,1247.8,4.89724443]
[1672992165113,3.00288962,1247.9,1247.8,6.31774472]
[1672992165534,3.00288962,1247.9,1247.8,4.89724443]
[1672992167008,3.00288962,1247.9,1247.8,6.31774448]
[1672992167220,3.00032511,1247.9,1247.8,6.31774448]
[1672992170056,1.80253835,1247.9,1247.8,7.12830005]
[1672992171747,3.00374882,1247.9,1247.8,10.12380083]
[1672992171954,1.80253835,1247.9,1247.8,10.12380083]
[1672992172164,3.00372932,1247.9,1247.8,10.12380083]
[1672992172375,1.80253835,1247.9,1247.8,10.12380083]
[1672992175741,4.20607416,1247.9,1247.8,12.52023129]
[1672992176372,1.80253835,1247.9,1247.8,10.12380083]
[1672992177837,1.80253835,1247.9,1247.8,6.91600083]
[1672992180674,4.20607416,1247.9,1247.8,9.31204815]
[1672992181303,2.40353581,1247.9,1247.8,6.31654737]
[1672992182564,3.2078,1247.9,1247.8,4.29733869]
[1672992182886,5.60977769,1247.9,1247.8,6.69338601]
[1672992186572,5.60977769,1247.9,1247.8,4.89604732]
[1672992188141,8.61221846,1247.9,1247.8,6.69340039]
[1672992188351,5.60977769,1247.9,1247.8,6.69340039]
[1672992188559,8.61221846,1247.9,1247.8,6.69340039]
[1672992189611,5.60977769,1247.9,1247.8,4.89604732]
[1672992190039,5.60977769,1247.9,1247.8,6.69352355]
[1672992190345,8.61221846,1247.9,1247.8,6.69357521]
[1672992190770,6.21024077,1247.9,1247.8,4.29752789]
[1672992191609,8.61233736,1247.9,1247.8,6.69357521]
[1672992191821,8.61239271,1247.9,1247.8,6.69357521]
[1672992192032,6.21024077,1247.9,1247.8,6.69357521]
[1672992192240,6.21024077,1247.9,1247.8,1.79752789]
[1672992192445,6.21024077,1247.9,1247.8,4.29752789]
[1672992192869,8.61236528,1247.9,1247.8,6.69357521]
[1672992193069,8.61236528,1247.9,1247.8,4.29752789]
[1672992193287,6.21024077,1247.9,1247.8,4.29752789]
[1672992194133,8.61227369,1247.9,1247.8,6.69357521]
[1672992194553,6.21024077,1247.9,1247.8,4.29752789]
[1672992195604,3.00244077,1247.9,1247.8,4.29752789]
[1672992195808,6.21024077,1247.9,1247.8,4.29752789]
[1672992196551,8.61224422,1247.9,1247.8,6.69357521]
[1672992196758,5.60980345,1247.9,1247.8,6.69342732]
[1672992196975,5.60980345,1247.9,1247.8,4.89604732]
[1672992199387,2.40200345,1247.9,1247.8,4.89604732]
[1672992200229,2.40200345,1247.9,1247.8,6.31649538]
[1672992200651,4.20343463,1247.9,1247.8,9.31199616]
[1672992201389,4.20343463,1247.9,1247.8,6.31649538]
[1672992202013,2.40200345,1247.9,1247.8,6.31649538]
[1672992205063,2.40200345,1247.9,1247.8,4.89604732]
[1672992205805,2.40200345,1247.9,1247.8,6.31652699]
[1672992206013,2.40200345,1247.9,1247.8,4.89604732]
[1672992207277,2.40200345,1247.9,1247.8,6.31650878]
[1672992212940,2.40200345,1247.9,1247.8,9.31200956]
[1672992214107,2.40200345,1247.9,1247.8,6.91596224]
[1672992214319,2.40200345,1247.9,1247.8,9.31301846]
[1672992214631,2.40200345,1247.9,1247.8,6.31751768]
[1672992215475,2.40200345,1247.9,1247.8,3.81751768]
[1672992215687,2.40200345,1247.9,1247.8,6.31751768]
[1672992215890,2.40200345,1247.9,1247.8,9.31301846]
[1672992216948,2.40200345,1247.9,1247.8,6.31751768]
[1672992217264,5.40444422,1247.9,1247.8,6.31751768]
[1672992217460,2.40200345,1247.9,1247.8,6.31751768]
[1672992217675,5.40444422,1247.9,1247.8,6.31751768]
[1672992221566,3.00244077,1247.9,1247.8,6.31751768]
[1672992222196,5.40596098,1247.9,1247.8,6.31751768]
[1672992223868,2.40352021,1247.9,1247.8,6.91596224]
[1672992224097,5.40596098,1247.9,1247.8,9.31436428]
[1672992224404,2.40352021,1247.9,1247.8,6.91596224]
[1672992225672,2.40352021,1247.9,1247.8,9.31421088]
[1672992226212,2.40352021,1247.9,1247.8,6.3187101]
[1672992226422,5.40596098,1247.9,1247.8,6.3187101]
[1672992227794,5.40596098,1247.9,1247.8,3.8187101]
[1672992228429,5.40596098,1247.9,1247.8,6.3187101]
[1672992229270,2.40352021,1247.9,1247.8,9.31421088]
[1672992230001,2.40352021,1247.9,1247.8,14.93496224]
[1672992230210,2.40352021,1247.9,1247.8,17.33311998]
[1672992230411,2.40352021,1247.9,1247.8,17.33303212]
[1672992231257,2.40352021,1247.9,1247.8,14.93496224]
[1672992231468,4.20606871,1247.9,1247.8,14.93496224]
[1672992231995,2.40352021,1247.9,1247.8,14.93496224]
[1672992232200,2.40352021,1247.9,1247.8,17.33273251]
[1672992232410,1.80239204,1247.9,1247.8,14.93496224]
[1672992232634,1.80239204,1247.9,1247.8,18.14276224]
[1672992232826,4.20591225,1247.9,1247.8,18.14276224]
[1672992233676,1.80239204,1247.9,1247.8,18.14276224]
[1672992233882,4.20591225,1247.9,1247.8,18.14276224]
[1672992234830,1.80239204,1247.9,1247.8,18.14276224]
[1672992236090,1.80239204,1247.9,1247.8,14.93496224]
[1672992237644,3.00371582,1247.9,1247.8,14.93496224]
[1672992237859,1.80239204,1247.9,1247.8,14.93590491]
[1672992239463,3.00370686,1247.9,1247.8,11.93946146]
[1672992239660,3.00001307,1247.9,1247.8,11.93946146]
[1672992240067,1.20131482,1247.9,1247.8,11.93946146]
[1672992240274,2.40352021,1248.0,1247.9,2.5]
[1672992240486,2.40352021,1248.0,1247.9,14.33633087]
[1672992241550,2.40352021,1248.0,1247.9,17.33187367]
[1672992241779,2.40352021,1248.0,1247.9,14.93537393]